bitfinex/quotes_ETHUSD_20260228
["timestamp","ask_amount","ask_price","bid_price","bid_amount"]
[1772288772452,6.35655808,1904.7,1903.6,7.53633791]
[1772288772672,6.35655808,1904.7,1903.7,1.817]
[1772288772953,1.31261157,1904.6,1903.7,3.13017042]
[1772288773493,1.31261157,1904.6,1903.7,9.35325642]
[1772288774304,7.66916965,1904.6,1903.7,1.817]
[1772288774989,7.66916965,1904.6,1903.5,1.31331753]
[1772288775286,7.66916965,1904.6,1903.7,1.817]
[1772288776012,6.35655808,1904.4,1903.5,1.816]
[1772288776666,6.35655808,1904.1,1903.2,1.815]
[1772288776871,1.31302521,1904.0,1903.2,3.12854308]
[1772288777399,1.31302521,1904.0,1903.2,1.815]
[1772288777581,1.31302521,1904.0,1903.2,3.12857115]
[1772288777790,1.31302521,1904.0,1903.2,9.35165715]
[1772288778009,11.39070365,1903.8,1903.0,0.001]
[1772288778314,6.35655808,1903.7,1903.0,0.001]
[1772288779016,7.66985919,1903.6,1903.0,0.001]
[1772288779514,6.35655808,1903.5,1903.0,0.001]
[1772288779717,1.31302521,1904.0,1903.0,6.224086]
[1772288779892,7.66958329,1904.0,1903.0,0.001]
[1772288780088,6.35655808,1903.8,1903.0,0.001]
[1772288780290,8.21355808,1903.8,1903.0,0.001]
[1772288781236,8.21355808,1903.8,1902.9,0.001]
[1772288781237,5.03414557,1903.2,1902.9,0.001]
[1772288781528,1.857,1903.6,1902.7,7.53799461]
[1772288781894,6.35655808,1904.5,1903.1,6.223086]
[1772288783406,6.35655808,1904.2,1903.2,9.34866313]
[1772288784609,0.002,1903.5,1903.2,9.34866313]
[1772288785588,0.002,1903.5,1903.2,7.53666313]
[1772288785819,0.002,1903.5,1903.2,9.35066313]
[1772288786826,0.002,1903.5,1903.2,12.9422991]
[1772288787028,0.002,1903.5,1903.2,9.35066313]
[1772288788514,0.002,1903.5,1903.2,7.53666313]
[1772288788702,0.002,1903.5,1903.3,1.82]
[1772288789523,0.002,1903.8,1903.3,1.82]
[1772288789820,0.002,1903.8,1903.1,6.223086]
[1772288790000,6.35855808,1903.8,1903.0,3.13469188]
[1772288790195,6.35855808,1903.8,1903.1,1.822]
[1772288790703,1.31323212,1903.7,1903.1,3.13564224]
[1772288790900,0.002,1903.8,1903.2,6.223086]
[1772288791111,1.31516809,1903.8,1903.1,1.31364224]
[1772288791430,7.67172617,1903.8,1903.0,1.821]
[1772288792705,7.67172617,1903.8,1902.9,7.53683969]
[1772288792910,6.35655808,1903.7,1902.9,1.821]
[1772288793305,6.35655808,1903.7,1902.9,3.59163597]
[1772288793524,6.35655808,1903.7,1902.8,7.53788825]
[1772288794622,6.35655808,1903.5,1902.8,3.13483926]
[1772288794822,1.3134391,1903.4,1902.8,3.13483926]
[1772288795224,1.3134391,1903.4,1902.8,0.001]
[1772288795428,7.66999718,1903.4,1902.8,0.001]
[1772288795836,5.25335958,1903.6,1902.8,7.53791813]
[1772288797028,5.25335958,1903.6,1903.0,0.001]
[1772288797416,5.25535958,1903.6,1903.0,0.001]
[1772288798131,3.59163597,1903.3,1902.7,0.001]
[1772288798333,6.35655808,1903.3,1902.7,0.001]
[1772288798536,6.35655808,1903.2,1902.7,0.001]
[1772288798908,1.854,1903.4,1902.7,0.001]
[1772288799237,9.52399718,1903.4,1902.7,0.001]
[1772288799530,6.35655808,1903.2,1902.7,0.001]
[1772288799728,3.1674391,1903.4,1902.7,0.001]
[1772288799941,9.52399718,1903.4,1902.7,0.001]
[1772288800836,9.04139303,1903.4,1902.7,0.001]
[1772288801236,7.18739303,1903.4,1902.7,0.001]
[1772288810253,1.31339615,1903.5,1902.8,5.88808112]
[1772288810422,7.71133781,1903.5,1902.8,0.001]
[1772288810750,6.39794166,1903.3,1902.8,0.001]
[1772288812556,7.71147186,1903.3,1902.8,0.001]
[1772288812763,1.31534945,1903.6,1902.8,5.88808112]
[1772288814664,1.31534945,1903.6,1902.9,1.31378422]
[1772288814839,1.31534945,1903.6,1903.0,5.88708112]
[1772288815541,7.71329111,1903.6,1902.9,1.31378422]
[1772288815961,3.59163597,1903.4,1902.8,5.88808112]
[1772288816286,6.39794166,1903.3,1902.8,0.001]
[1772288816638,1.31357713,1903.2,1902.8,0.001]
[1772288816966,7.71151879,1903.2,1902.8,0.001]
[1772288817336,1.3133701,1903.5,1902.8,5.88808112]
[1772288817762,6.39794166,1903.3,1902.8,0.001]
[1772288818062,6.39794166,1903.1,1902.8,0.001]
[1772288819062,1.31371518,1903.0,1902.8,0.001]
[1772288820267,6.39794166,1902.9,1902.5,0.001]
[1772288820858,1.31385326,1902.8,1902.5,0.001]
[1772288821370,1.31383429,1902.9,1902.5,0.001]
[1772288821948,3.1866944,1903.1,1902.5,5.88808112]
[1772288822772,1.31342095,1903.5,1902.8,5.88808112]
[1772288822975,0.002,1903.3,1903.0,5.88708112]
[1772288823551,6.39994166,1903.3,1902.8,1.31485326]
[1772288823880,0.002,1903.3,1902.8,7.20193438]
[1772288825642,0.002,1903.3,1902.8,5.88808112]
[1772288825868,0.002,1903.3,1902.9,5.88708112]
[1772288826647,0.002,1903.3,1902.8,0.001]
[1772288828059,6.39994166,1903.3,1902.8,0.001]
[1772288830179,1.31357713,1903.2,1902.8,0.001]
[1772288833385,1.26357713,1903.2,1902.8,0.001]
[1772288835003,1.31554423,1903.3,1902.8,5.88283314]
[1772288835495,0.002,1903.3,1902.8,7.19664115]
[1772288841096,0.002,1903.4,1902.9,5.88183314]
[1772288841272,0.002,1903.4,1903.1,5.88183314]
[1772288843165,0.002,1903.4,1902.9,11.13678495]
[1772288843503,0.002,1903.4,1903.0,5.88183314]
[1772288844495,0.002,1903.4,1903.1,5.88183314]
[1772288844667,0.002,1903.4,1903.2,1.823]
[1772288845074,0.002,1903.4,1903.2,7.70483314]
[1772288845388,0.002,1903.4,1903.2,9.01838721]
[1772288845796,0.002,1903.4,1903.3,5.88183314]
[1772288846910,0.002,1903.4,1903.3,1.826]
[1772288849700,0.002,1903.4,1903.3,3.13950811]
[1772288850004,0.002,1903.4,1903.3,1.31350811]
[1772288850898,0.002,1903.4,1903.2,11.13602794]
[1772288851199,0.002,1903.4,1903.2,7.19541027]
[1772288851625,0.002,1903.6,1903.2,1.31357713]
[1772288851910,0.002,1903.9,1903.7,5.88183314]
[1772288852114,0.002,1903.9,1903.7,7.71583314]
[1772288852818,0.002,1903.9,1903.8,5.88183314]
[1772288853131,0.002,1903.9,1903.8,1.836]
[1772288853985,0.002,1903.9,1903.5,1.31336263]
[1772288854192,0.002,1903.9,1903.6,1.837]
[1772288854396,6.07916428,1903.9,1903.2,1.31353926]
[1772288854714,6.07916428,1903.9,1903.3,1.838]
[1772288855112,6.07916428,1903.9,1903.1,5.88183314]
[1772288855316,6.07716428,1903.8,1902.9,5.88283314]
[1772288855477,6.07716428,1903.8,1903.1,1.837]
[1772288855676,6.07716428,1903.8,1902.9,5.88283314]
[1772288855902,6.07716428,1903.8,1903.0,1.837]
[1772288856100,6.07716428,1903.6,1902.9,9.03360748]
[1772288856788,6.07716428,1903.6,1902.9,7.71983314]
[1772288857310,6.07716428,1903.6,1902.9,1.838]
[1772288857715,6.07716428,1903.6,1902.9,0.001]
[1772288858178,7.39053438,1903.5,1902.9,0.001]
[1772288862316,7.39053438,1903.5,1902.8,0.001]
[1772288862509,7.39053438,1903.5,1903.0,0.001]
[1772288863713,5.92918259,1903.4,1903.0,0.001]
[1772288865204,1.31350811,1903.3,1903.0,0.001]
[1772288870018,11.18321505,1903.4,1903.0,0.001]
[1772288870193,6.44252222,1903.3,1902.8,0.001]
[1772288870394,6.44252222,1903.1,1902.6,0.001]
[1772288871897,1.31357713,1903.2,1902.6,7.41372207]
[1772288872092,13.59168901,1903.3,1902.6,7.41372207]
[1772288872093,9.65103033,1903.3,1902.6,7.41372207]
[1772288872927,3.20850811,1903.3,1902.6,7.41372207]
[1772288873625,9.65103033,1903.3,1902.6,7.41372207]
[1772288874508,9.65103033,1903.3,1902.7,0.001]
[1772288875017,0.002,1903.2,1902.7,0.001]
[1772288875813,0.002,1903.2,1902.7,6.09973326]
[1772288877605,6.44452222,1903.2,1902.7,6.09973326]
[1772288878633,1.31364615,1903.1,1902.7,6.09973326]
[1772288879633,7.75616837,1903.1,1902.7,0.001]
[1772288881031,6.44252222,1902.9,1902.5,0.001]
[1772288881805,1.904,1903.0,1902.5,7.41378737]
[1772288882004,1.31365892,1903.1,1902.5,7.41378737]
[1772288882832,9.66313923,1903.2,1902.5,6.09973326]
[1772288883012,6.44252222,1903.1,1902.5,7.41379162]
[1772288883832,3.22061701,1903.2,1902.5,7.41379162]
[1772288884140,6.44252222,1903.1,1902.5,6.09973326]
[1772288884839,6.44252222,1903.1,1902.5,7.41379121]
[1772288885017,1.31364895,1903.1,1902.5,7.41379121]
[1772288885624,1.31364895,1903.1,1902.5,6.09973326]
[1772288886132,7.75617117,1903.1,1902.5,7.41379228]
[1772288886813,7.75617117,1903.1,1902.5,6.09973326]
[1772288887146,7.75617117,1903.1,1902.6,6.09973326]
[1772288887516,1.31563904,1903.2,1902.6,6.09973326]
[1772288887933,3.22463904,1903.2,1902.6,6.09973326]
[1772288888338,9.66716126,1903.2,1902.6,6.09973326]
[1772288888518,9.66716126,1903.2,1902.6,0.001]
[1772288888519,6.44252222,1903.1,1902.6,0.001]
[1772288888936,7.7562374,1903.0,1902.6,0.001]
[1772288889240,6.44252222,1902.9,1902.6,0.001]
[1772288890115,8.35352222,1902.9,1902.6,0.001]
[1772288890316,1.31562235,1903.2,1902.6,7.17857104]
[1772288890733,1.31562235,1903.2,1902.6,6.09973326]
[1772288891344,1.31562235,1903.2,1902.6,7.41372394]
[1772288891711,1.31562235,1903.2,1902.6,6.09973326]
[1772288892139,1.31562235,1903.2,1902.6,7.41372129]
[1772288892545,1.31562235,1903.2,1902.6,7.41372263]
[1772288896049,0.002,1903.2,1902.7,5.93899223]
[1772288897352,0.002,1903.2,1902.7,7.2528785]
[1772288898957,0.002,1903.5,1903.2,5.93899223]
[1772288899258,6.21247129,1903.4,1902.8,5.93899223]
[1772288899550,7.5239794,1903.3,1902.8,5.93899223]
[1772288909958,6.21047129,1903.1,1902.6,5.93999223]
[1772288911141,6.21047129,1903.1,1902.8,0.001]
[1772288911341,6.92956659,1903.1,1902.8,0.001]
[1772288911973,7.52418647,1903.0,1902.8,0.001]
[1772288912143,7.52418647,1903.0,1902.6,5.93999223]
[1772288916445,5.25646976,1903.2,1902.8,5.93899223]
[1772288916667,1.31557713,1903.2,1902.8,5.93899223]
[1772288920571,0.002,1903.2,1902.8,7.25284336]
[1772288920861,0.002,1903.2,1902.8,7.25282314]
[1772288921174,0.002,1903.2,1902.8,5.93899223]
[1772288923089,1.3155386,1903.3,1902.9,6.07099383]
[1772288923286,0.002,1903.3,1903.0,6.07099383]
[1772288924482,0.002,1903.1,1903.0,7.92099383]
[1772288924886,0.002,1903.1,1903.0,9.23470901]
[1772288926060,0.002,1903.1,1903.0,7.92099383]
[1772288928169,0.002,1903.1,1903.0,9.23470901]
[1772288928481,0.002,1903.1,1903.0,7.92099383]
[1772288929277,0.002,1903.1,1903.0,9.23470901]
[1772288929581,0.002,1903.1,1903.0,7.92099383]
[1772288930156,0.002,1903.1,1903.0,9.23470901]
[1772288930555,0.002,1903.3,1903.1,5.95471879]
[1772288930758,0.002,1903.3,1903.1,6.67381409]
[1772288931453,0.002,1903.3,1903.1,5.95471879]
[1772288932177,0.002,1903.3,1903.1,7.81671879]
[1772288932688,0.002,1903.3,1903.2,5.95471879]
[1772288935102,0.002,1903.3,1903.0,7.82171879]
[1772288935261,0.002,1903.3,1903.1,5.95471879]
[1772288936566,0.002,1903.3,1903.2,9.13729592]
[1772288936760,0.002,1903.4,1903.3,5.95471879]
[1772288936966,0.002,1903.4,1903.3,6.67381409]
[1772288937782,0.002,1903.4,1903.3,5.95471879]
[1772288940455,6.4137666,1903.4,1903.2,1.874]
[1772288941772,7.72721768,1903.4,1903.2,1.874]
[1772288942596,0.002,1903.4,1903.3,5.95471879]
[1772288942793,0.002,1903.8,1903.5,5.95471879]
[1772288943053,0.002,1903.8,1903.6,8.55081409]
[1772288943381,6.4137666,1903.8,1903.2,7.78540182]
[1772288943695,6.4137666,1903.8,1903.2,5.95471879]
[1772288943696,6.4117666,1903.6,1903.2,5.95471879]
[1772288943887,1.3133701,1903.5,1903.2,5.95471879]
[1772288944057,7.72506771,1903.6,1903.2,5.95471879]
[1772288944261,1.31330111,1903.6,1903.2,5.95471879]
[1772288944692,7.72506771,1903.6,1903.2,5.95471879]
[1772288947617,6.4117666,1903.4,1903.1,0.001]
[1772288948205,6.4117666,1903.4,1903.1,5.95571879]
[1772288948920,6.4117666,1903.4,1903.3,0.001]
[1772288949125,5.25472249,1903.8,1903.3,5.95571879]
[1772288949126,1.31523108,1903.8,1903.3,5.95571879]
[1772288949320,6.4137666,1903.7,1903.3,5.95571879]
[1772288949618,7.1328619,1903.7,1903.3,7.83671879]
[1772288949785,7.1328619,1903.7,1903.3,0.001]
[1772288951114,7.55521119,1903.6,1903.3,0.001]
[1772288951287,6.24191008,1903.4,1903.3,0.001]
[1772288951800,7.55521119,1903.6,1903.3,0.001]
[1772288952816,7.55521119,1903.6,1903.1,0.001]
[1772288953028,7.55521119,1903.6,1903.1,7.37877379]
[1772288953322,1.967,1903.5,1903.1,6.06513061]
[1772288954119,1.967,1903.5,1903.1,7.37877356]
[1772288955631,7.55522763,1903.6,1903.1,7.37877356]
[1772288956015,7.55522746,1903.6,1903.1,7.37877356]
[1772288962164,0.002,1903.5,1903.2,6.06513061]
[1772288964461,6.24391008,1903.5,1903.2,6.06513061]
[1772288968071,6.24391008,1903.5,1903.2,7.37869827]
[1772288968369,6.24391008,1903.5,1903.2,6.06513061]
[1772288969072,0.002,1903.5,1903.2,7.37869309]
[1772288969643,6.24391008,1903.5,1903.2,6.06513061]
[1772288970770,6.24391008,1903.5,1903.2,7.37870544]
[1772288972566,0.002,1903.5,1903.2,7.37870544]
[1772288973119,0.002,1903.7,1903.6,6.06413061]
[1772288973362,7.55493743,1904.0,1903.6,6.06413061]
[1772288974965,0.002,1903.7,1903.6,6.06413061]
[1772288975754,0.002,1903.7,1903.6,7.37743172]
[1772288977262,0.002,1903.7,1903.6,7.97313061]
[1772288977877,0.002,1903.7,1903.6,9.28643172]
[1772288982578,0.002,1903.7,1903.6,7.97313061]
[1772288982875,6.05216265,1903.7,1903.4,6.09989121]
[1772288983051,6.05216265,1903.7,1903.3,8.01889121]
[1772288984780,0.002,1903.7,1903.4,6.0489497]
[1772288984957,5.63484027,1903.7,1903.4,6.0489497]
[1772288985157,6.94807262,1903.7,1903.3,9.28145461]
[1772288985364,6.94807262,1903.7,1903.3,7.9679497]
[1772288985562,5.63284027,1903.6,1903.2,0.001]
[1772288986671,6.94616274,1903.6,1903.2,6.0499497]
[1772288986979,5.63284027,1903.6,1903.4,0.001]
[1772288987158,0.002,1903.7,1903.4,6.0499497]
[1772288987364,5.63484027,1903.7,1903.4,6.0499497]
[1772288987959,5.63484027,1903.7,1903.4,0.001]
[1772288988961,5.63484027,1903.7,1903.4,6.0499497]
[1772288989156,5.63484027,1903.7,1903.4,0.001]
[1772288989781,6.94808,1903.7,1903.4,0.001]
[1772288990465,5.63484027,1903.7,1903.4,0.001]
[1772288990985,6.94807374,1903.7,1903.4,0.001]
[1772288991579,5.63484027,1903.7,1903.4,0.001]
[1772288993188,5.63484027,1903.7,1903.4,6.0499497]
[1772288993366,5.63484027,1903.7,1903.4,0.001]
[1772288994375,6.94807687,1903.7,1903.4,0.001]
[1772288999083,5.63484027,1903.7,1903.4,6.0499497]
[1772288999668,5.63484027,1903.7,1903.4,7.36338155]
[1772289000397,5.63484027,1903.7,1903.5,0.001]
[1772289000768,0.002,1903.7,1903.5,6.0499497]
[1772289001194,5.63284027,1903.5,1903.3,0.001]
[1772289001379,1.31523332,1903.7,1903.0,0.001]
[1772289001380,5.63284027,1903.2,1903.0,0.001]
[1772289001792,6.94642225,1903.2,1903.0,0.001]
[1772289001984,2.012,1903.1,1903.0,0.001]
[1772289002169,5.63284027,1903.1,1902.8,0.001]
[1772289002570,5.63284027,1903.0,1902.8,0.001]
[1772289002996,1.31353717,1903.3,1902.8,7.36378017]
[1772289003193,6.94632192,1903.4,1902.9,6.0489497]
[1772289003494,6.33273732,1903.7,1902.9,7.12673306]
[1772289003495,5.63284027,1903.6,1902.9,7.12673306]
[1772289003685,5.63284027,1903.5,1903.1,6.0489497]
[1772289003886,5.63284027,1903.5,1903.0,6.0489497]
[1772289004394,1.31330603,1903.6,1903.0,6.0489497]
[1772289005121,5.63484027,1903.7,1903.0,6.0489497]
[1772289005404,0.002,1903.7,1903.2,6.0489497]
[1772289005579,0.002,1903.7,1902.9,3.25077982]
[1772289005580,2.39301728,1903.7,1902.9,3.25077982]
[1772289005770,0.002,1903.7,1903.2,6.0489497]
[1772289006201,1.31523971,1903.7,1903.2,6.0489497]
[1772289006500,6.71062363,1903.5,1902.8,7.36380126]
[1772289006886,5.63284027,1903.2,1902.8,0.001]
[1772289007092,7.64784027,1903.2,1902.8,0.001]
[1772289007803,6.94655545,1903.0,1902.8,0.001]
[1772289010183,5.63284027,1903.4,1902.8,0.001]
[1772289010391,3.33257165,1903.3,1902.8,6.0499497]
[1772289010591,8.99994975,1903.3,1902.8,6.0499497]
[1772289010903,6.74516146,1903.2,1902.8,0.001]
[1772289012305,1.31364615,1903.1,1902.8,0.001]
[1772289013306,1.31364615,1903.1,1902.9,0.001]
[1772289014907,3.34153133,1903.3,1902.9,5.6482497]
[1772289015106,9.00890943,1903.3,1902.9,5.6482497]
[1772289016312,5.6673781,1903.2,1902.9,0.001]
[1772289017086,6.98101874,1903.2,1902.9,0.001]
[1772289017902,0.002,1903.3,1902.9,6.72603306]
[1772289018298,0.002,1903.6,1903.1,5.6472497]
[1772289018616,1.31530937,1903.6,1903.1,5.6472497]
[1772289018799,0.002,1903.6,1903.1,5.6472497]
[1772289018999,6.98269633,1903.6,1903.0,3.24866998]
[1772289019221,6.98269633,1903.6,1903.0,1.935]
[1772289019397,6.98269633,1903.6,1903.0,8.89595468]
[1772289019593,6.98269633,1903.6,1903.1,5.6472497]
[1772289020117,9.01469633,1903.6,1903.1,5.6472497]
[1772289021222,9.01469633,1903.6,1902.9,0.001]
[1772289021223,6.74516146,1903.3,1902.9,0.001]
[1772289021526,7.7003781,1903.2,1902.9,0.001]
[1772289021949,2.033,1903.2,1902.9,5.6482497]
[1772289022109,2.033,1903.2,1902.9,0.001]
[1772289023036,5.6673781,1903.3,1902.9,0.001]
[1772289023037,7.7023781,1903.3,1902.9,0.001]
[1772289023331,1.31357713,1903.2,1902.9,0.001]
[1772289023619,1.31357713,1903.2,1902.9,5.6482497]
[1772289023998,6.98095523,1903.2,1902.8,0.001]
[1772289024433,0.002,1903.6,1902.8,5.6482497]
[1772289024434,1.3133701,1903.5,1902.8,5.6482497]
[1772289024623,9.0177482,1903.5,1902.8,5.6482497]
[1772289025639,5.6673781,1903.4,1902.9,1.31378422]
[1772289025809,5.6673781,1903.4,1903.0,0.001]
[1772289026013,0.002,1903.3,1903.0,0.001]
[1772289026540,0.002,1903.3,1903.0,5.6482497]
[1772289027723,0.002,1903.4,1903.1,5.6472497]
[1772289029825,0.002,1903.4,1903.2,1.31357713]
[1772289030021,0.002,1903.4,1903.1,6.96084171]
[1772289035432,5.6673781,1903.3,1903.0,0.001]
[1772289035636,6.38608657,1903.1,1902.8,0.001]
[1772289035843,6.38608657,1902.8,1902.5,0.001]
[1772289036135,6.38608657,1902.6,1902.3,0.001]
[1772289036323,6.38608657,1902.6,1902.3,0.003]
[1772289036711,6.38608657,1902.6,1902.1,5.05510634]
[1772289036916,6.38608657,1902.6,1902.1,6.36944234]
[1772289037416,5.6673781,1902.6,1902.1,6.36944234]
[1772289037648,6.98141291,1902.6,1902.1,6.36944234]
[1772289037831,6.98141291,1902.6,1902.1,5.05510634]
[1772289038124,6.98141291,1902.6,1902.2,0.001]
[1772289038746,6.98127993,1902.8,1902.2,5.6482497]
[1772289039049,5.6673781,1902.7,1902.2,5.6482497]
[1772289039344,5.6673781,1902.7,1902.2,0.001]
[1772289039929,6.98132499,1902.7,1902.2,0.001]
[1772289040542,5.25368917,1903.5,1902.2,5.83839573]
[1772289040543,6.648688,1902.9,1902.2,5.83839573]
[1772289040722,5.33483822,1902.8,1902.2,0.001]
[1772289041923,5.33483822,1902.6,1902.2,0.001]
[1772289045449,5.33483822,1902.6,1902.2,5.72411041]
[1772289047134,5.33483822,1902.6,1902.2,7.03836929]
[1772289047334,6.64883017,1902.6,1902.2,7.03836929]
[1772289047538,6.64883017,1902.6,1902.2,5.72411041]
[1772289048054,6.64883017,1902.6,1902.2,7.03837788]
[1772289048448,6.64883017,1902.6,1902.2,6.26865912]
[1772289048855,6.64883017,1902.6,1902.2,4.95439165]
[1772289049074,6.64883017,1902.6,1902.0,0.001]
[1772289049075,5.34433614,1902.3,1902.0,0.001]
[1772289049366,6.65853658,1902.3,1902.0,0.001]
[1772289049534,5.34433614,1902.1,1901.7,0.001]
[1772289049741,8.94097973,1902.0,1901.7,0.001]
[1772289050129,3.36120044,1902.3,1901.7,7.03872337]
[1772289050130,5.34433614,1902.2,1901.7,7.03872337]
[1772289050330,6.65849252,1902.4,1901.7,7.03872337]
[1772289050527,8.70549252,1902.4,1901.9,5.72311041]
[1772289050757,5.34433614,1902.1,1901.7,0.001]
[1772289050928,5.34433614,1902.1,1902.0,0.001]
[1772289051359,6.65867292,1902.1,1902.0,0.001]
[1772289052564,8.70967292,1902.1,1902.0,0.001]
[1772289052738,6.65867292,1902.1,1902.0,0.001]
[1772289053064,8.70967292,1902.1,1902.0,0.001]
[1772289054458,2.051,1902.1,1902.0,0.001]
[1772289054864,3.36533678,1902.1,1902.0,0.001]
[1772289055066,1.31433678,1902.1,1902.0,0.001]
[1772289055272,12.6561308,1902.3,1902.0,0.001]
[1772289055273,1.31432311,1902.2,1902.0,0.001]
[1772289055571,6.65865925,1902.2,1902.0,0.001]
[1772289056335,6.65865925,1902.2,1901.7,0.001]
[1772289056646,1.31426217,1902.3,1901.7,5.72411041]
[1772289056844,3.37126217,1902.3,1901.7,5.72411041]
[1772289057159,5.34433614,1902.1,1901.5,0.001]
[1772289057565,5.34433614,1901.9,1901.5,0.001]
[1772289058465,6.65888025,1901.8,1901.5,0.001]
[1772289059969,6.65855989,1902.3,1901.6,5.72311041]
[1772289060469,5.34433614,1902.2,1901.5,1.957]
[1772289060630,5.34433614,1902.0,1901.5,0.001]
[1772289060836,1.31433678,1902.1,1901.5,0.001]
[1772289061062,7.40533614,1902.0,1901.5,0.001]
[1772289061567,5.34433614,1901.9,1901.5,0.001]
[1772289062329,5.34433614,1901.9,1901.0,5.26033009]
[1772289062330,5.34433614,1901.8,1901.0,7.03815423]
[1772289062568,6.65908765,1901.5,1901.0,7.03815423]
[1772289062772,5.34433614,1901.5,1901.0,7.03815423]
[1772289063334,5.34433614,1901.5,1901.3,0.001]
[1772289063577,5.34433614,1901.5,1901.0,5.72311041]
[1772289063578,5.34433614,1901.0,1899.8,7.0390384]
[1772289063979,11.28231696,1901.2,1900.1,5.43041036]
[1772289064139,1.396,1901.1,1900.3,5.72311041]
[1772289064632,1.396,1901.1,1900.6,5.72311041]
[1772289065040,12.59728493,1901.2,1900.5,7.03855371]
[1772289065241,12.59728493,1901.2,1900.5,8.99455371]
[1772289065448,5.93798082,1901.2,1900.6,5.72311041]
[1772289066665,5.93798082,1901.2,1900.7,1.31530488]
[1772289066857,5.93798082,1901.2,1900.7,7.03841529]
[1772289067054,5.93798082,1901.2,1900.7,2.02726355]
[1772289067444,5.93798082,1901.2,1900.7,1.10360105]
[1772289068059,7.25294599,1901.2,1900.7,1.10360105]
[1772289068365,3.82372139,1901.1,1900.7,1.10360105]
[1772289068664,9.47240285,1901.1,1900.7,1.959]
[1772289068840,8.70765857,1901.0,1900.4,0.53008191]
[1772289069038,8.70765857,1901.0,1900.5,1.844]
[1772289069244,8.70765857,1901.0,1900.4,0.53008191]
[1772289069451,5.64868146,1900.8,1900.1,1.958]
[1772289069965,2.065,1900.9,1899.7,2.48163973]
[1772289069966,5.64868146,1900.6,1899.7,2.48163973]
[1772289070186,5.64868146,1900.4,1899.7,2.48163973]
[1772289070550,5.64868146,1900.4,1899.7,2.47347064]
[1772289070878,3.3804893,1900.5,1899.9,1.31585872]
[1772289071377,2.065,1900.5,1899.9,1.31585872]
[1772289071549,1.31535995,1900.7,1900.0,0.50909556]
[1772289072167,7.11047381,1900.7,1899.9,1.31585872]
[1772289072543,3.05897711,1901.0,1900.3,0.50274385]
[1772289072873,7.10992022,1901.5,1900.7,1.31530488]
[1772289073251,5.79511386,1901.5,1900.8,3.59664359]
[1772289073774,7.10986801,1901.5,1900.7,1.31530488]
[1772289073949,7.10986801,1901.5,1900.7,3.27230488]
[1772289074485,7.10986801,1901.5,1900.7,1.957]
[1772289074875,7.10986801,1901.5,1900.7,3.27229094]
[1772289075063,5.90003031,1901.4,1900.7,1.31529094]
[1772289076386,5.90003031,1901.4,1900.5,10.81440781]
[1772289076387,5.90003031,1901.3,1900.8,0.001]
[1772289076584,5.90003031,1901.2,1900.8,0.001]
[1772289076965,7.21505845,1901.1,1900.8,0.001]
[1772289078497,5.90203031,1901.4,1900.8,0.001]
[1772289078702,7.2168585,1901.4,1900.8,0.001]
[1772289080958,5.90003031,1901.1,1900.8,0.001]
[1772289081166,7.21462762,1901.0,1900.7,0.001]
[1772289081664,7.21462762,1901.0,1900.5,0.001]
[1772289081665,5.89953031,1900.9,1900.5,0.001]
[1772289081864,5.89953031,1900.7,1899.9,3.26680337]
[1772289082286,5.89953031,1900.7,1899.9,1.31580337]
[1772289083000,3.59664359,1900.4,1899.1,1.31641303]
[1772289083223,5.89953031,1900.1,1899.3,1.95]
[1772289083432,5.89953031,1900.1,1899.1,1.31641303]
[1772289084199,7.97153031,1900.1,1899.1,1.31641303]
[1772289084374,5.89953031,1900.0,1899.1,1.31641303]
[1772289085202,7.21537668,1900.0,1899.1,1.31641303]
[1772289085408,7.21537668,1900.0,1899.2,3.59664359]
[1772289085562,7.21537668,1900.0,1899.1,1.31641303]
[1772289085780,1.31579522,1900.0,1899.1,1.31641303]
[1772289085979,7.21525852,1900.1,1899.2,3.59664359]
[1772289086215,5.89953031,1900.1,1899.2,3.59664359]
[1772289086496,5.89953031,1900.5,1899.6,3.59664359]
[1772289086709,5.89953031,1900.5,1899.6,4.80664359]
[1772289086908,5.89953031,1900.5,1899.6,3.59664359]
[1772289087111,5.89953031,1900.5,1899.7,1.31599726]
[1772289087112,1.31551252,1900.4,1899.7,1.31599726]
[1772289087316,1.31532857,1900.7,1899.7,1.31599726]
[1772289087486,7.21485888,1900.7,1899.7,1.31599726]
[1772289087681,7.21483818,1900.7,1899.7,1.31599726]
[1772289087882,7.21485907,1900.7,1899.7,1.31599726]
[1772289088115,7.21485221,1900.7,1899.7,1.31599726]
[1772289088613,7.21469619,1901.1,1899.9,5.04536535]
[1772289089213,7.21469619,1901.1,1900.0,1.31578947]
[1772289089385,7.21469619,1901.1,1900.1,1.502]
[1772289090495,0.002,1901.0,1900.1,1.502]
[1772289091022,0.002,1901.0,1900.2,5.04536535]
[1772289091398,5.90153031,1901.0,1900.3,1.31558175]
[1772289092903,5.90153031,1901.0,1900.3,3.26458175]
[1772289093813,0.002,1901.0,1900.3,3.26458175]
[1772289094821,0.002,1901.0,1900.5,5.04536535]
[1772289095027,0.002,1901.0,1900.3,3.26458175]
[1772289098137,5.90153031,1901.3,1900.7,5.04536535]
[1772289098138,0.002,1901.3,1900.7,5.04536535]
[1772289098321,0.002,1901.3,1900.8,3.26423569]
[1772289098913,5.90153031,1901.3,1900.9,1.95]
[1772289099110,0.002,1901.4,1901.0,5.66383115]
[1772289099309,0.002,1901.5,1901.0,5.66383115]
[1772289099911,0.002,1901.5,1901.1,1.951]
[1772289100440,0.002,1901.5,1901.2,1.31495897]
[1772289100745,0.002,1901.5,1901.2,6.64105542]
[1772289101550,0.002,1901.7,1901.2,6.64105542]
[1772289101749,5.4710055,1901.7,1901.2,1.953]
[1772289102640,0.002,1901.7,1901.3,1.31488981]
[1772289103165,0.002,1901.4,1901.3,1.31488981]
[1772289103667,0.002,1901.7,1901.3,6.78664491]
[1772289104363,0.002,1901.5,1901.3,1.31488981]
[1772289105859,5.41530181,1901.5,1900.8,1.3151665]
[1772289106541,5.41330181,1901.3,1900.6,1.96]
[1772289107143,5.41330181,1901.3,1900.5,1.31537409]